bitfinex/quotes_ETHUSD_20230702
["timestamp","ask_amount","ask_price","bid_price","bid_amount"]
[1688339415343,30.56,1942.5,1942.0,10.98333008]
[1688339415583,5.14758,1942.7,1942.0,18.75185008]
[1688339415839,5.14779,1942.6,1942.0,20.76715008]
[1688339416046,5.14779,1942.6,1942.2,10.29732]
[1688339416200,10.29565,1942.6,1942.2,10.29732]
[1688339417241,12.86952,1942.6,1942.2,10.29732]
[1688339418398,10.29565,1942.6,1942.2,12.87172]
[1688339418726,10.2952,1942.7,1942.2,12.87172]
[1688339419028,10.2952,1942.7,1942.3,6.435492]
[1688339419797,10.2952,1942.7,1942.3,11.584022]
[1688339420111,12.86893,1942.7,1942.3,11.584022]
[1688339420293,12.86893,1942.7,1942.3,10.29685]
[1688339423949,12.86893,1942.7,1942.3,5.14832]
[1688339426586,13.79293,1942.7,1942.1,5.14893]
[1688339428159,0.929,1942.5,1942.0,2.6192]
[1688339428360,15.42978816,1942.4,1942.0,2.6192]
[1688339428547,0.02485427,1942.3,1942.0,2.6192]
[1688339428748,10.2976,1942.2,1942.0,2.6192]
[1688339430902,10.2976,1942.2,1942.0,7.76849]
[1688339431501,10.2976,1942.2,1942.0,2.6192]
[1688339432002,5.1488,1942.2,1942.0,7.76849]
[1688339432871,5.1488,1942.2,1942.0,12.91782]
[1688339436769,5.1479,1942.6,1942.0,17.970739]
[1688339437016,5.1481,1942.5,1942.0,17.970739]
[1688339437230,8.14761,1942.7,1942.1,0.929]
[1688339437385,5.68898789,1942.8,1942.2,12.87145]
[1688339437571,5.14753,1942.7,1942.2,14.508942]
[1688339437893,10.29506,1942.7,1942.2,14.508942]
[1688339439304,10.29506,1942.7,1942.2,15.436942]
[1688339440200,10.29506,1942.7,1942.2,14.508942]
[1688339440538,12.86879,1942.7,1942.2,14.508942]
[1688339442139,12.86879,1942.7,1942.2,14.458942]
[1688339446162,10.29506,1942.7,1942.2,11.934652]
[1688339446738,0.14687653,1942.8,1942.3,1.1934652]
[1688339446938,0.4148693,1942.9,1942.5,0.923]
[1688339447141,0.4148693,1942.9,1942.6,10.29542]
[1688339447368,10.29366,1943.0,1942.6,5.14768]
[1688339447524,10.71545522,1943.0,1942.6,10.29542]
[1688339453461,10.73197073,1943.0,1942.6,10.29542]
[1688339454085,0.929,1942.7,1942.2,5.14866]
[1688339454290,12.88618551,1942.6,1942.2,2.6696]
[1688339454804,0.02252902,1942.5,1942.2,2.6696]
[1688339454958,5.14827,1942.4,1942.2,2.6696]
[1688339455289,0.0240665,1942.3,1942.2,2.6696]
[1688339455893,0.0240665,1942.3,1942.2,7.8184]
[1688339456126,5.14827,1942.4,1942.2,7.8184]
[1688339456465,0.02589481,1942.3,1942.2,7.8184]
[1688339461982,10.29671,1942.4,1942.2,7.8184]
[1688339462213,0.02506571,1942.3,1942.2,7.8184]
[1688339464715,5.17359571,1942.3,1942.2,7.8184]
[1688339465092,0.02506571,1942.3,1942.2,7.8184]
[1688339465415,5.14755,1942.7,1942.3,5.447]
[1688339465614,5.1475,1942.7,1942.4,12.87053]
[1688339465820,5.1475,1942.7,1942.4,10.29642]
[1688339465821,10.295,1942.7,1942.4,10.29642]
[1688339468001,5.1475,1942.7,1942.4,10.29642]
[1688339468209,10.29497,1942.7,1942.4,10.29642]
[1688339469852,5.14747,1942.7,1942.4,10.29642]
[1688339470049,10.29494,1942.7,1942.4,5.14821]
[1688339470573,10.29494,1942.7,1942.3,6.07533]
[1688339470773,10.29494,1942.7,1942.3,5.14833]
[1688339471442,10.29494,1942.7,1942.2,15.192688]
[1688339472755,10.29494,1942.7,1942.2,23.214088]
[1688339473768,10.29494,1942.7,1942.2,8.74728]
[1688339473976,10.29494,1942.7,1942.2,12.96708]
[1688339473977,12.86867,1942.7,1942.2,12.96708]
[1688339475488,12.86867,1942.7,1942.2,15.54148]
[1688339477885,5.14747,1942.7,1942.2,15.54148]
[1688339480088,5.14747,1942.7,1942.2,17.188528]
[1688339481167,10.29494,1942.7,1942.2,17.188528]
[1688339481384,10.29494,1942.7,1942.2,15.54148]
[1688339482494,12.86867,1942.7,1942.2,15.54148]
[1688339482790,12.86867,1942.7,1942.2,12.96708]
[1688339486061,12.86867,1942.7,1942.2,7.81828]
[1688339487781,0.02203755,1942.6,1942.2,12.96708]
[1688339487980,10.29608,1942.5,1942.2,14.614137]
[1688339488400,0.01920624,1942.4,1942.2,14.614137]
[1688339488710,5.14788,1942.6,1942.2,14.614137]
[1688339489412,0.01830428,1942.5,1942.2,14.614137]
[1688339489822,5.14788,1942.6,1942.2,14.614137]
[1688339489989,0.0190371,1942.5,1942.2,14.614137]
[1688339490191,5.14788,1942.6,1942.2,14.614137]
[1688339490901,0.01866082,1942.5,1942.3,1.4614137]
[1688339491089,5.14756,1942.7,1942.3,11.7582437]
[1688339491613,0.40266006,1942.9,1942.5,13.79887]
[1688339491811,37.163599,1943.2,1942.7,5.14747]
[1688339491987,5.1468,1943.0,1942.7,5.14747]
[1688339492980,10.29358,1943.0,1942.7,5.14747]
[1688339493685,5.14642,1943.1,1942.7,10.29494]
[1688339494014,10.29293,1943.1,1942.7,10.29494]
[1688339495026,10.29293,1943.1,1942.7,5.14747]
[1688339495318,5.14642,1943.1,1942.7,10.29494]
[1688339495694,5.56694936,1943.2,1942.7,15.428879]
[1688339495695,0.42069936,1943.2,1942.7,15.428879]
[1688339495897,10.71328936,1943.2,1942.9,10.29378]
[1688339496232,10.29259,1943.2,1942.9,10.29378]
[1688339497794,10.29259,1943.2,1942.9,5.14689]
[1688339498011,10.29259,1943.2,1942.9,10.29383]
[1688339499330,10.29259,1943.2,1942.9,11.580567]
[1688339499538,1.76509603,1943.3,1942.9,14.154037]
[1688339500019,6.91100603,1943.3,1942.9,15.082037]
[1688339500407,6.91100603,1943.3,1942.9,14.154037]
[1688339500614,6.91100603,1943.3,1942.9,12.8673]
[1688339501686,12.05691603,1943.3,1942.9,12.8673]
[1688339502092,12.05691603,1943.3,1942.9,10.29383]
[1688339502093,14.62985603,1943.3,1942.9,10.29383]
[1688339502439,14.62985603,1943.3,1942.2,0.41977948]
[1688339502440,8.00578816,1943.2,1942.2,0.41977948]
[1688339502737,5.447,1942.8,1941.7,2.65720151]
[1688339502893,5.447,1942.8,1942.0,2.5463]
[1688339502894,12.87007,1942.5,1942.0,2.5463]
[1688339503097,12.87145,1942.3,1941.7,0.89495964]
[1688339503297,13.79745,1942.3,1941.7,8.59122964]
[1688339503494,12.87145,1942.3,1941.7,13.74134964]
[1688339504107,12.87145,1942.3,1941.9,0.929]
[1688339504108,10.29716,1942.3,1941.9,0.929]
[1688339504317,12.87142,1942.3,1941.9,6.07853]
[1688339504627,12.87142,1942.3,1941.9,11.22812]
[1688339504829,12.87142,1942.3,1941.9,10.29912]
[1688339505030,10.29716,1942.3,1941.9,10.29912]
[1688339507336,31.590743,1942.6,1942.1,0.929]
[1688339507497,5.14777,1942.6,1942.2,10.2973]
[1688339508246,5.14777,1942.6,1942.2,12.8401]
[1688339508436,10.29554,1942.6,1942.2,12.8401]
[1688339508638,10.29554,1942.6,1942.2,7.69138]
[1688339511633,10.70933068,1942.6,1942.2,7.69138]
[1688339511835,5.56156068,1942.6,1942.2,12.84018]
[1688339512242,10.70933068,1942.6,1942.2,7.69138]
[1688339513377,13.28320068,1942.6,1942.2,7.69138]
[1688339513942,2.55878816,1942.5,1941.8,7.12247]
[1688339514117,7.72284,1942.3,1941.8,14.80923]
[1688339515047,12.8714,1942.3,1941.8,14.80923]
[1688339516110,12.8714,1942.3,1941.8,16.73005296]
[1688339517242,12.8714,1942.3,1941.8,14.80923]
[1688339518717,12.8714,1942.3,1941.8,18.30716]
[1688339520953,10.29712,1942.3,1941.8,18.30716]
[1688339524738,12.87138,1942.3,1941.8,18.30716]
[1688339526278,10.29712,1942.3,1941.8,18.30716]
[1688339528639,10.29712,1942.3,1941.8,20.22737196]
[1688339530273,12.87138,1942.3,1941.8,20.22737196]
[1688339532739,5.14856,1942.3,1941.9,0.925]
[1688339532939,5.14856,1942.3,1942.0,10.29854]
[1688339534671,10.31333551,1942.4,1942.0,10.29854]
[1688339534835,5.16488551,1942.4,1942.0,10.29854]
[1688339535041,5.16488551,1942.4,1942.0,11.678368]
[1688339535672,0.12740392,1942.7,1942.0,18.050368]
[1688339535974,0.12740392,1942.7,1942.2,12.8715]
[1688339535975,10.2951,1942.7,1942.2,12.8715]
[1688339536165,12.86883,1942.7,1942.3,2.6733]
[1688339536479,12.86883,1942.7,1942.3,7.82168]
[1688339536843,12.86883,1942.7,1942.3,12.97021]
[1688339540255,12.86883,1942.7,1942.3,7.82168]
[1688339540469,12.86883,1942.7,1942.3,12.97021]
[1688339541602,5.56967213,1942.8,1942.3,15.54447]
[1688339541883,5.56967213,1942.8,1942.3,17.449251]
[1688339542470,10.71696213,1942.8,1942.3,17.449251]
[1688339543545,5.56960213,1942.8,1942.3,17.449251]
[1688339544683,0.42231213,1942.8,1942.3,17.449251]
[1688339544981,0.42231213,1942.8,1942.5,10.2959]
[1688339545181,0.01651551,1942.8,1942.5,10.2959]
[1688339546108,5.5538045,1942.9,1942.6,0.929]
[1688339546251,5.5538045,1942.9,1942.7,5.14747]
[1688339546587,5.5538045,1942.9,1942.7,10.29494]
[1688339547109,0.4068545,1942.9,1942.7,11.677594]
[1688339547299,5.14683,1943.0,1942.7,11.677594]
[1688339549477,10.29369,1943.0,1942.7,11.677594]
[1688339549677,10.29369,1943.0,1942.7,10.29494]
[1688339550888,10.29312,1943.1,1942.7,12.86867]
[1688339551071,10.29306,1943.1,1942.7,12.86867]
[1688339551570,10.69894669,1943.1,1942.7,12.86867]
[1688339553273,10.69894669,1943.1,1942.8,0.00649369]
[1688339553475,10.69894669,1943.1,1942.8,5.14708]
[1688339553771,5.55239669,1943.1,1942.8,11.22129]
[1688339554003,10.69890669,1943.1,1942.8,10.29429]
[1688339554186,5.55232669,1943.1,1942.8,10.29429]
[1688339554520,5.55230669,1943.1,1942.8,10.29429]
[1688339554822,5.14642,1943.1,1942.8,10.29429]
[1688339555023,10.30907551,1943.2,1942.8,12.86789]
[1688339556119,10.73080444,1943.2,1942.8,12.86789]
[1688339561315,10.73080444,1943.2,1942.8,12.76789]
[1688339561644,10.73080444,1943.2,1942.8,14.330959]
[1688339561847,5.58451444,1943.2,1942.8,15.259959]
[1688339562147,0.42172893,1943.2,1942.9,0.923]
[1688339562386,0.42172893,1943.2,1943.0,13.7957]
[1688339562552,1.3468006,1943.3,1943.0,15.17527]
[1688339562879,1.75484524,1943.3,1943.0,15.17527]
[1688339563840,1.75484524,1943.3,1943.1,0.929]
[1688339564065,1.75484524,1943.3,1943.2,5.14615]
[1688339565494,1.75484524,1943.3,1943.2,10.2923]
[1688339565853,1.75484524,1943.3,1943.2,11.67175]
[1688339566311,1.3468006,1943.3,1943.2,12.60075]
[1688339571220,1.3468006,1943.3,1943.1,6.07539]
[1688339571373,1.3468006,1943.3,1943.2,5.14615]
[1688339572494,1.3468006,1943.3,1943.2,10.2923]
[1688339575828,1.3468006,1943.3,1943.2,13.79437]
[1688339576134,1.3468006,1943.3,1943.2,19.24137]
[1688339576299,1.3468006,1943.3,1943.2,21.422824]
[1688339577837,1.3468006,1943.3,1943.2,23.98161216]
[1688339583053,32.1395,1944.1,1943.2,30.05276216]
[1688339583273,32.1395,1944.1,1943.4,5.447]
[1688339583476,5.14335,1944.3,1943.6,12.86265]
[1688339583675,7.70213816,1944.3,1943.8,0.928]
[1688339583887,15.41708816,1944.3,1943.8,5.1445]
[1688339584090,15.41708816,1944.3,1943.8,10.28906]
[1688339584292,13.2638488,1944.3,1943.8,18.30834]
[1688339584581,13.2638488,1944.3,1943.8,20.488913]
[1688339585000,10.6922388,1944.3,1943.8,21.417913]
[1688339585167,5.14334,1944.3,1943.9,0.929]
[1688339585366,10.28668,1944.3,1944.0,10.28796]
[1688339585799,5.14334,1944.3,1944.0,10.28796]
[1688339585987,10.28668,1944.3,1944.0,10.28796]
[1688339587293,5.21761841,1944.4,1944.0,10.28796]
[1688339587493,5.1433,1944.3,1944.0,10.28796]
[1688339588204,10.2866,1944.3,1943.9,2.6381]
[1688339588391,12.85821,1944.3,1943.8,5.14446]
[1688339588576,12.85821,1944.3,1943.8,10.28902]
[1688339588981,12.85821,1944.3,1943.8,5.14446]
[1688339589804,12.85821,1944.3,1943.8,10.28902]
[1688339590772,0.0579729,1944.4,1943.9,5.447]
[1688339591002,0.0579729,1944.4,1944.0,5.144]
[1688339591003,5.2009429,1944.4,1944.0,5.144]
[1688339591209,5.2009429,1944.4,1944.0,12.86004]
[1688339592469,5.2009429,1944.4,1944.0,14.956114]
[1688339593679,0.0579729,1944.4,1944.0,14.956114]
[1688339595180,0.0579729,1944.4,1944.0,20.403114]
[1688339598212,0.0579729,1944.4,1944.2,5.447]
[1688339598383,0.0579729,1944.4,1944.3,12.85807]
[1688339598885,0.0579729,1944.4,1944.3,10.28646]
[1688339599291,0.0579729,1944.4,1944.3,12.383868]
[1688339604013,13.8443929,1944.4,1943.8,5.14447]
[1688339604220,12.9153929,1944.4,1943.8,10.28903]
[1688339604385,12.9153929,1944.4,1943.8,5.14447]
[1688339605416,12.9153929,1944.4,1943.8,10.28903]
[1688339605795,12.9153929,1944.4,1943.8,15.73603]
[1688339606717,12.9153929,1944.4,1943.8,5.14447]
[1688339607589,0.01651551,1944.3,1943.8,5.14447]
[1688339607794,13.78807,1944.2,1943.8,5.14447]
[1688339609589,12.85907,1944.2,1943.8,10.28903]
[1688339611424,13.78807,1944.2,1943.8,5.14447]
[1688339611590,0.929,1944.0,1943.6,10.1226]
[1688339611790,10.2887,1943.9,1943.6,20.41259]
[1688339612499,5.14435,1943.9,1943.6,20.41259]
[1688339612714,5.14432,1943.9,1943.7,2.041259]
[1688339613016,5.14432,1943.9,1943.7,7.185939]
[1688339613216,5.14432,1943.9,1943.7,12.330759]
[1688339613429,5.14432,1943.9,1943.7,7.185939]
[1688339614630,5.14432,1943.9,1943.7,12.330759]
[1688339615598,5.14432,1943.9,1943.7,7.185939]
[1688339615799,5.14432,1943.9,1943.7,5.14468]
[1688339616500,5.14432,1943.9,1943.7,10.2895]
[1688339617203,5.14432,1943.9,1943.7,5.14468]
[1688339617736,5.14432,1943.9,1943.1,0.41983165]
[1688339617737,2.57530367,1943.8,1943.1,0.41983165]
[1688339617933,12.86277,1943.6,1943.1,5.14639]
[1688339618232,12.86277,1943.6,1943.1,10.2928]
[1688339618233,0.02576851,1943.5,1943.1,10.2928]
[1688339618431,5.14567,1943.4,1943.1,10.2928]
[1688339618728,0.02583955,1943.3,1943.1,10.2928]
[1688339620295,10.29184,1943.3,1943.1,5.14639]
[1688339620496,5.14592,1943.3,1943.1,5.14639]
[1688339620738,5.14592,1943.3,1943.1,5.14638]
[1688339621322,5.14592,1943.3,1943.1,10.29279]
[1688339621527,10.29158,1943.4,1943.1,10.29279]
[1688339622046,12.86436,1943.4,1943.0,13.07897]
[1688339622215,12.86436,1943.4,1943.0,13.07916]
[1688339622429,13.79136,1943.4,1943.0,7.9326]
[1688339622612,0.02111303,1943.3,1943.0,7.9326]
[1688339622943,5.14603,1943.3,1943.0,13.07928]
[1688339623248,10.29201,1943.3,1943.0,7.9326]
[1688339623607,12.86495,1943.3,1943.0,5.1466]
[1688339624024,10.29201,1943.3,1943.0,10.29328]
[1688339624252,10.29201,1943.3,1943.0,11.840184]
[1688339625645,10.29201,1943.3,1943.0,6.693504]
[1688339635924,1.030115,1943.7,1943.0,22.41931216]
[1688339636129,1.030115,1943.7,1943.0,24.70625187]
[1688339636130,5.14483,1943.7,1943.0,24.70625187]
[1688339636352,5.14483,1943.7,1943.1,7.91762519]
[1688339636555,5.14483,1943.7,1943.2,12.86482]
[1688339636860,5.14483,1943.7,1943.2,15.38432]
[1688339637322,5.14483,1943.7,1943.2,17.39002]
[1688339639890,5.14483,1943.7,1943.3,0.927]
[1688339640199,5.14483,1943.7,1943.4,10.29112]
[1688339641107,0.01651551,1943.8,1943.4,13.79293]
[1688339641702,5.16107551,1943.8,1943.5,2.71]
[1688339642009,5.16107551,1943.8,1943.6,5.14509]
[1688339644866,0.01651551,1943.8,1943.6,5.14509]
[1688339645062,0.01651551,1943.8,1943.6,10.29018]
[1688339645280,0.01651551,1943.8,1943.6,11.847458]
[1688339645497,5.16108551,1943.8,1943.6,11.847458]
[1688339646389,5.16108551,1943.8,1943.6,10.29018]
[1688339647082,0.01651551,1943.8,1943.6,10.29018]
[1688339648494,5.16107551,1943.8,1943.6,10.29018]
[1688339648675,10.30563551,1943.8,1943.6,5.14509]
[1688339654100,10.30183981,1943.8,1943.6,5.14509]
[1688339655879,10.30183981,1943.8,1943.5,13.00045]
[1688339657481,12.87411981,1943.8,1943.5,2.71]
[1688339664984,12.87411981,1943.8,1943.5,7.85534]
[1688339674925,12.87411981,1943.8,1943.5,2.71]
[1688339680359,0.01900227,1943.7,1943.5,2.71]
[1688339680528,5.14509,1943.6,1943.5,2.71]
[1688339689163,10.29018,1943.6,1943.5,2.71]
[1688339690633,12.86272,1943.6,1943.0,0.929]
[1688339690834,0.04389299,1943.5,1943.1,2.6205]
[1688339691053,10.29134,1943.4,1943.1,2.6205]
[1688339691377,5.18980299,1943.3,1943.1,7.7669]
[1688339692274,5.18980299,1943.3,1943.1,12.91331]
[1688339693531,10.33571299,1943.3,1943.1,2.6205]
[1688339694244,5.18980299,1943.3,1943.1,2.6205]
[1688339694447,11.11197629,1943.3,1943.1,2.6205]
[1688339695349,13.68491629,1943.3,1942.8,0.00443462]
[1688339695545,13.68491629,1943.3,1942.9,7.92734]
[1688339695768,13.68491629,1943.3,1942.9,2.7805]
[1688339696172,11.11197629,1943.3,1942.9,7.92736]
[1688339696473,11.11197629,1943.3,1942.9,13.0743]
[1688339696639,11.11197629,1943.3,1942.9,15.64777]
[1688339697141,11.11197629,1943.3,1942.9,13.0743]
[1688339698149,5.7668273,1943.2,1942.9,15.64782]
[1688339698577,5.14572,1943.4,1942.9,15.64782]
[1688339698754,5.14562,1943.4,1942.9,16.57282]
[1688339699876,10.29124,1943.4,1942.9,16.57282]
[1688339700178,0.01984803,1943.3,1942.9,16.57282]
[1688339700344,5.14601,1943.3,1942.9,16.57282]
[1688339700542,0.01957495,1943.2,1942.9,16.57282]
[1688339700878,0.01957495,1943.2,1943.1,0.929]
[1688339701086,0.01271982,1943.5,1943.1,13.79502]
[1688339701652,5.15807982,1943.5,1943.2,2.7133]
[1688339701846,5.15807982,1943.5,1943.3,5.14588]
[1688339702567,0.01271982,1943.5,1943.3,5.14588]
[1688339702759,5.15810982,1943.5,1943.3,5.14588]
[1688339704693,1.030085,1943.8,1943.4,0.929]
[1688339704895,5.14414,1944.0,1943.5,10.2906]
[1688339705059,5.14414,1944.0,1943.5,14.8114]
[1688339705604,5.14414,1944.0,1943.5,22.83107]
[1688339705750,5.14414,1944.0,1943.7,10.28957]
[1688339705951,10.28825,1944.0,1943.7,5.14477]
[1688339706754,10.28825,1944.0,1943.7,10.28959]
[1688339706755,5.14411,1944.0,1943.7,10.28959]
[1688339707798,10.28822,1944.0,1943.7,5.14477]
[1688339710289,0.01271982,1943.9,1943.5,4.5208]
[1688339710596,10.28922,1943.8,1943.5,9.66609]
[1688339713421,5.14456,1943.8,1943.5,15.74044]
[1688339713723,5.14456,1943.8,1943.5,10.59509]
[1688339714404,5.14456,1943.8,1943.5,9.66609]
[1688339714991,5.14456,1943.8,1943.5,2.6503]
[1688339715218,10.28912,1943.8,1943.5,2.6503]
[1688339715433,2.55878816,1943.7,1942.9,0.928]
[1688339715622,12.86365,1943.5,1943.0,2.6704]
[1688339716110,13.78965,1943.5,1943.0,2.6704]
[1688339716283,12.8652,1943.3,1942.6,5.14759]
[1688339716494,16.34998816,1943.3,1942.7,2.6704]
[1688339716890,2.55878816,1943.2,1942.7,2.6704]
[1688339717093,12.86695,1943.0,1942.5,5.14791]
[1688339717327,12.86695,1943.0,1942.5,7.81831]
[1688339717527,0.04389299,1942.9,1942.5,7.81831]
[1688339717729,10.29452,1942.8,1942.5,12.96631]
[1688339718095,10.29452,1942.8,1942.5,7.81831]
[1688339718323,5.14726,1942.8,1942.5,12.96631]
[1688339720995,10.29452,1942.8,1942.5,12.96631]
[1688339726104,10.29418,1942.9,1942.5,12.96631]
[1688339726309,0.02112759,1942.8,1942.5,14.91632119]
[1688339727338,5.16834759,1942.8,1942.5,14.91632119]
[1688339727542,5.14722,1942.8,1942.5,14.91632119]
[1688339728205,5.14722,1942.8,1942.5,13.89531]
[1688339728404,10.29444,1942.8,1942.5,12.96631]
[1688339728837,10.29444,1942.8,1942.5,7.81831]
[1688339729037,12.86804,1942.8,1942.1,5.447]
[1688339729218,12.86804,1942.8,1942.3,2.7708]
[1688339729611,12.88075982,1942.8,1942.3,2.7708]
[1688339731910,15.43954798,1942.8,1942.3,2.7708]
[1688339732507,15.43954798,1942.8,1942.1,7.14226]
[1688339732508,2.55878816,1942.7,1942.1,7.14226]
[1688339732736,10.2959,1942.6,1942.1,14.93716]
[1688339733120,15.42855816,1942.6,1942.1,12.94386]
[1688339733320,15.42855816,1942.6,1942.1,12.94396]
[1688339733523,15.42855816,1942.6,1942.1,15.51849]
[1688339736420,12.85468816,1942.6,1942.1,15.51849]
[1688339736749,8.16004982,1942.8,1942.3,0.925]
[1688339736935,16.50518014,1942.7,1942.4,5.14824]
[1688339737457,13.29516,1942.7,1942.4,5.14824]
[1688339737678,15.86889,1942.7,1942.2,8.02474599]
[1688339737818,2.55878816,1942.6,1942.2,10.30182599]
[1688339738157,10.2961,1942.5,1942.2,5.15311599]
[1688339738313,10.2961,1942.5,1942.2,0.00443599]
[1688339739752,10.2961,1942.5,1942.1,7.79505]
[1688339740525,10.2961,1942.5,1942.1,2.646]
[1688339741322,10.2961,1942.5,1942.1,7.79506]
[1688339741554,5.14805,1942.5,1942.1,7.79506]
[1688339742656,10.2961,1942.5,1942.1,2.646]
[1688339742857,12.8701,1942.5,1942.1,7.79503]
[1688339743964,12.8701,1942.5,1942.1,12.94409]
[1688339744768,10.2961,1942.5,1942.1,12.94409]
[1688339745552,10.2961,1942.5,1942.1,15.51862]
[1688339745744,5.14805,1942.5,1942.1,15.51862]
[1688339746660,5.14805,1942.5,1942.1,18.19438564]
[1688339750725,7.70667816,1942.6,1942.1,18.19438564]
[1688339751468,8.1263453,1942.6,1942.1,18.19438564]
[1688339756771,0.927,1942.2,1941.7,5.14996]
[1688339756971,0.927,1942.2,1941.6,2.7728]
[1688339756972,15.43175816,1942.1,1941.6,2.7728]
[1688339757170,3.0,1942.0,1941.6,2.7728]
[1688339757370,10.29928,1941.9,1941.6,2.7728]
[1688339757867,10.29928,1941.9,1941.6,7.92318]
[1688339758074,3.0,1942.0,1941.5,0.4157118]
[1688339758375,3.0,1942.0,1941.5,7.92344]
[1688339758376,10.2993,1941.9,1941.5,7.92344]
[1688339758873,12.87409,1941.9,1941.5,2.7728]
[1688339759082,12.87409,1941.9,1941.5,7.92343]
[1688339759467,15.43287816,1941.9,1941.5,2.7728]
[1688339759668,2.55878816,1941.8,1941.4,0.1310444]
[1688339759981,10.30034,1941.7,1941.4,0.1310444]
[1688339760153,12.85912816,1941.7,1941.4,0.1310444]
[1688339760355,0.929,1941.5,1941.4,0.1310444]
[1688339760564,16.36440816,1941.5,1941.4,0.1310444]
[1688339760971,12.87662,1941.5,1941.4,0.1310444]
[1688339761174,5.58777982,1941.7,1941.4,5.2819644]
[1688339761175,8.1502,1941.7,1941.4,5.2819644]
[1688339761500,3.0,1941.6,1941.4,5.2819644]
[1688339762268,8.15039,1941.6,1941.4,0.1310444]
[1688339762469,13.30078,1941.6,1941.4,0.1310444]
[1688339762884,8.15039,1941.6,1941.4,0.1310444]
[1688339765047,37.15153386,1942.0,1941.4,13.78865584]
[1688339765248,5.1496,1941.9,1941.4,13.78865584]
[1688339765452,10.2992,1941.9,1941.4,13.78865584]
[1688339765971,10.2992,1941.9,1941.4,15.67155584]
[1688339767547,10.2992,1941.9,1941.5,1.56715558]
[1688339767755,10.2992,1941.9,1941.6,5.15033]
[1688339767968,12.87399,1941.9,1941.4,2.0139444]
[1688339768167,12.8753,1941.7,1941.4,0.1310444]
[1688339768583,12.8753,1941.7,1941.3,7.66896]
[1688339769449,12.8753,1941.7,1941.3,12.82014]
[1688339770164,12.8753,1941.7,1941.3,7.66896]
[1688339770356,12.8753,1941.7,1941.3,7.6689]
[1688339771462,12.8753,1941.7,1941.3,12.82008]
[1688339772167,10.30024,1941.7,1941.3,12.82008]
[1688339774888,12.85902816,1941.7,1941.3,2.5178]
[1688339775075,15.43408816,1941.7,1941.3,2.5178]
[1688339775257,15.43408816,1941.7,1941.3,7.66896]
[1688339775677,15.43408816,1941.7,1941.3,2.5178]
[1688339775678,2.55878816,1941.6,1941.3,2.5178]
[1688339775872,2.55878816,1941.6,1941.2,12.19360828]
[1688339775873,10.3013,1941.5,1941.2,0.00443828]
[1688339776074,5.15065,1941.5,1941.2,5.15578828]
[1688339777066,10.3013,1941.5,1941.2,0.00443828]
[1688339777276,5.15065,1941.5,1941.2,10.30726828]
[1688339777469,12.85998816,1941.6,1941.2,12.88298828]
[1688339777663,7.70935816,1941.6,1941.2,12.88298828]
[1688339778162,12.85988816,1941.6,1941.2,10.30726828]
[1688339778579,15.43507816,1941.6,1941.2,10.30726828]
[1688339779652,12.85988816,1941.6,1941.2,10.30726828]
[1688339782274,15.43507816,1941.6,1941.2,10.30726828]
[1688339784181,15.43507816,1941.6,1941.2,5.15581828]
[1688339784381,15.43507816,1941.6,1941.2,0.00443828]
[1688339784782,16.36507816,1941.6,1941.0,4.6912]
[1688339784999,3.921,1941.5,1941.0,2.6667]
[1688339785300,3.921,1941.5,1940.9,5.15215]
[1688339785301,15.43640816,1941.4,1940.9,5.15215]
[1688339785500,3.0,1941.3,1940.8,5.15249]
[1688339785670,12.86194816,1941.2,1940.9,5.15222]
[1688339785995,12.86194816,1941.2,1940.9,10.30446]
[1688339786358,12.86194816,1941.2,1940.9,5.15222]
[1688339787202,15.43766816,1941.2,1940.7,2.7837]
[1688339787368,15.43766816,1941.2,1940.8,10.30474]
[1688339787566,15.43766816,1941.2,1940.8,5.15233]
[1688339789411,12.86194816,1941.2,1940.8,10.25484]
[1688339789909,15.43766816,1941.2,1940.8,10.25484]
[1688339792515,15.43766816,1941.2,1940.8,5.10233]
[1688339793619,0.01891101,1941.1,1940.8,5.10233]
[1688339793786,10.30396,1941.0,1940.8,5.10233]
[1688339793982,0.02430076,1940.9,1940.8,5.10233]
[1688339794186,5.17654076,1940.9,1940.8,5.10233]
[1688339794397,5.15224,1940.9,1940.8,5.10233]
[1688339794782,5.1705166,1940.9,1940.8,5.10233]
[1688339794984,7.71102816,1940.9,1940.4,0.1]
[1688339795236,0.929,1940.7,1940.4,0.1]
[1688339795419,15.44138816,1940.6,1940.4,0.1]
[1688339795593,16.09072348,1940.6,1940.4,0.1]
[1688339795795,3.0,1940.5,1940.4,0.1]
[1688339796020,18.44205816,1940.5,1940.4,0.1]
[1688339797229,25.0031133,1940.5,1940.4,0.1]
[1688339797934,25.9331133,1940.5,1940.4,0.1]
[1688339798234,28.6216003,1940.5,1940.4,0.1]
[1688339798546,28.6216003,1940.5,1940.2,0.1]
[1688339798547,21.38052,1940.3,1940.2,0.1]
[1688339798749,21.38052,1940.3,1939.9,0.1]
[1688339798750,0.5,1940.1,1939.9,0.1]
[1688339798929,23.92166816,1940.0,1939.9,0.1]
[1688339799245,15.44535816,1940.0,1939.9,0.1]
[1688339799455,18.44535816,1940.0,1939.9,0.1]
[1688339800766,21.55135816,1940.0,1939.9,0.0421]
[1688339800948,5.419,1939.7,1939.6,0.1]
[1688339801267,32.83590183,1939.7,1939.6,0.1]
[1688339801417,36.53671909,1939.7,1939.6,0.1]
[1688339802256,36.53671909,1939.7,1939.4,0.1]
[1688339802257,5.419,1939.5,1939.4,0.1]
[1688339802472,5.419,1939.5,1939.3,0.0579729]
[1688339802473,7.919,1939.4,1939.3,0.0579729]
[1688339802680,15.86609242,1939.4,1939.3,0.0579729]
[1688339802892,26.41225115,1939.4,1939.3,0.0579729]
[1688339803200,15.91514115,1939.4,1939.3,0.0579729]
[1688339804040,19.52563515,1939.4,1939.3,0.0579729]